bitfinex/quotes_ETHUSD_20240607
["timestamp","ask_amount","ask_price","bid_price","bid_amount"]
[1717763639433,2.3731,3795.0,3791.6,0.604152]
[1717763639633,2.3731,3795.0,3790.2,2.3914]
[1717763639634,2.63626,3793.3,3790.9,2.63787]
[1717763639886,2.63638,3793.1,3790.2,2.3914]
[1717763640034,2.63638,3793.1,3790.0,4.63846]
[1717763640035,2.63802,3790.8,3790.0,2.0]
[1717763640234,2.63827,3790.4,3790.0,2.0]
[1717763640537,0.02297064,3790.5,3790.0,2.0]
[1717763640732,0.02297064,3790.9,3790.0,2.0]
[1717763641181,2.63802,3790.8,3790.0,2.0]
[1717763641477,2.63802,3790.8,3789.4,0.1022403]
[1717763641478,0.02297064,3789.5,3789.4,0.1022403]
[1717763641678,0.02297064,3789.5,3785.5,1.00249256]
[1717763641679,2.63937,3788.8,3785.7,2.4816]
[1717763641976,2.63989,3788.1,3786.2,2.64112]
[1717763642138,2.63989,3788.1,3785.4,2.72314891]
[1717763642139,0.02297064,3787.7,3785.4,2.72314891]
[1717763642336,0.02297064,3787.7,3785.4,0.08143891]
[1717763642571,0.02297064,3787.2,3787.1,2.8567961]
[1717763643085,2.64077,3786.8,3785.4,0.08143891]
[1717763643277,0.02297064,3786.2,3785.4,0.08143891]
[1717763643435,0.02297064,3787.1,3784.4,2.64236]
[1717763643635,0.02297064,3787.1,3781.7,2.7465503]
[1717763643636,1.32126577,3786.8,3784.5,0.27305207]
[1717763643848,4.98,3786.9,3784.0,82.35445085]
[1717763643849,0.75,3785.3,3784.0,82.35445085]
[1717763644076,2.3497,3785.1,3784.0,82.35445085]
[1717763644252,2.3497,3786.1,3784.0,82.35445085]
[1717763644453,3.3912,3786.2,3784.0,81.47445085]
[1717763644648,2.3497,3788.0,3784.0,81.47445085]
[1717763644649,0.75,3788.7,3785.1,2.64191]
[1717763644859,0.75,3788.7,3784.8,2.4339]
[1717763644860,2.3497,3789.0,3785.4,0.008]
[1717763645158,1.0,3790.5,3785.4,0.008]
[1717763645159,1.05668,3788.6,3786.0,2.64127]
[1717763645336,1.05668,3788.6,3785.5,1.14775356]
[1717763645337,0.02297064,3787.6,3786.1,0.33605831]
[1717763645669,0.02297064,3788.8,3786.8,2.6407]
[1717763645836,0.02297064,3788.8,3786.8,0.76516005]
[1717763646181,0.75,3788.6,3786.3,0.31806203]
[1717763646393,0.75,3788.6,3784.8,2.4339]
[1717763646394,0.75,3787.0,3785.7,0.008]
[1717763646575,2.3539,3787.5,3785.0,2.64197]
[1717763646944,2.63957,3788.5,3785.0,2.64197]
[1717763647175,1.07926964,3788.9,3784.1,2.65030545]
[1717763647176,0.75,3788.3,3786.2,2.64114]
[1717763647441,0.75,3788.3,3786.5,2.64095]
[1717763647642,0.10649174,3788.3,3786.5,2.64095]
[1717763647872,0.10649174,3788.3,3786.3,0.505634]
[1717763647873,0.10649174,3788.3,3787.5,2.64021]
[1717763648281,0.10649174,3788.3,3787.7,2.64005]
[1717763648583,0.02297064,3789.5,3787.8,0.33247773]
[1717763648792,0.04541394,3790.4,3787.8,0.33247773]
[1717763648793,0.02297064,3790.2,3788.9,2.63922]
[1717763648960,0.04541394,3790.4,3788.9,2.63922]
[1717763649162,0.04541394,3790.4,3789.3,2.63895]
[1717763649369,0.02297064,3790.2,3789.3,2.63895]
[1717763649686,0.75,3790.1,3788.3,2.6397]
[1717763650200,0.75,3790.1,3788.3,2.93544002]
[1717763650396,0.04541394,3790.4,3788.9,2.63926]
[1717763650580,0.04541394,3790.4,3787.4,3.0]
[1717763650581,0.04541394,3790.4,3789.1,2.63911]
[1717763650766,0.04541394,3790.4,3789.1,2.95509675]
[1717763651101,0.02297064,3789.3,3788.0,2.63988]
[1717763651405,2.63846,3790.1,3787.4,2.64029]
[1717763651629,0.575266,3790.0,3787.4,2.64029]
[1717763651834,3.1142,3790.3,3788.1,0.04999063]
[1717763651958,0.02297064,3790.7,3788.9,2.63928]
[1717763652593,2.63779,3791.1,3788.0,2.63991]
[1717763652594,1.32126577,3790.6,3788.0,2.63991]
[1717763652798,0.75,3789.8,3789.0,0.04999063]
[1717763653014,0.75,3789.8,3789.2,2.63904]
[1717763653188,0.04542331,3791.5,3789.4,2.63891]
[1717763653499,0.04541656,3792.1,3789.4,2.63891]
[1717763653669,0.04541656,3792.1,3788.3,0.008]
[1717763653670,0.02297064,3791.3,3790.2,0.04999063]
[1717763653875,0.04541656,3792.1,3790.3,0.04999063]
[1717763653876,0.02297064,3791.6,3790.3,0.04999063]
[1717763654055,0.02297064,3791.6,3790.0,2.63847]
[1717763654284,0.75,3791.8,3790.0,2.63847]
[1717763654513,0.75,3791.7,3790.6,2.63804]
[1717763654714,0.75,3791.7,3791.0,0.04999063]
[1717763655028,0.75,3791.7,3790.1,5.3814]
[1717763655029,0.75,3791.7,3791.3,2.68756063]
[1717763655187,0.75,3791.7,3790.4,2.63819]
[1717763655522,0.04541656,3792.1,3790.8,2.63796]
[1717763655681,0.04541656,3792.1,3791.7,0.04999063]
[1717763656116,0.04541656,3792.1,3791.5,0.34888194]
[1717763656317,0.04541656,3792.1,3791.4,0.04999063]
[1717763656522,0.04541656,3792.1,3791.0,0.78953882]
[1717763656827,0.02297064,3792.7,3791.3,0.04999063]
[1717763657147,9.87825293,3794.6,3791.8,0.04999063]
[1717763657148,0.04539095,3793.1,3791.8,0.04999063]
[1717763657279,0.04539095,3793.1,3792.4,0.04999063]
[1717763657484,0.04539095,3793.1,3792.3,2.68689063]
[1717763657785,0.04539095,3793.1,3792.7,2.6366]
[1717763658023,0.41295258,3793.0,3792.7,2.6366]
[1717763658229,0.04535337,3794.0,3791.9,2.63714]
[1717763658720,0.04535337,3794.0,3792.2,2.58697063]
[1717763658721,0.41294615,3793.6,3792.2,2.58697063]
[1717763659082,2.63486,3795.3,3792.2,2.89968105]
[1717763659319,0.04535492,3794.3,3792.9,2.63649]
[1717763659526,0.41288997,3794.0,3792.9,2.63649]
[1717763659759,0.263486,3795.2,3792.9,2.63649]
[1717763660029,0.41284404,3794.0,3793.3,2.63619]
[1717763660179,0.41284404,3794.0,3792.5,2.63672]
[1717763660385,0.04535339,3794.7,3792.5,2.63672]
[1717763660688,0.41289846,3793.7,3791.3,0.75]
[1717763661012,0.79535339,3794.7,3792.7,2.63658]
[1717763661013,0.04535339,3794.7,3792.7,2.63658]
[1717763661199,0.04535339,3794.7,3793.3,2.63616]
[1717763661583,0.04535339,3794.7,3793.3,0.30111625]
[1717763661790,0.79535339,3794.7,3793.2,2.63629]
[1717763661986,0.75,3794.7,3793.2,2.63629]
[1717763662318,0.04539243,3795.4,3793.2,0.263629]
[1717763662517,0.04539243,3795.4,3792.3,0.75]
[1717763662518,0.4127757,3795.2,3794.3,2.63548]
[1717763662704,0.4127757,3795.2,3794.9,2.63507]
[1717763662913,0.75,3796.6,3793.4,2.3043]
[1717763662914,0.75,3796.6,3795.1,2.63497]
[1717763663111,2.6335,3797.3,3795.1,2.63497]
[1717763663421,0.75,3797.2,3795.1,2.63497]
[1717763663625,2.63374,3796.9,3795.1,2.63497]
[1717763663807,2.63374,3796.9,3793.9,0.008]
[1717763663808,2.63374,3796.9,3794.4,2.63544]
[1717763664418,2.63409,3796.4,3794.4,2.63544]
[1717763664851,2.63444,3795.9,3793.7,2.6359]
[1717763665003,0.75,3795.4,3793.7,2.6359]
[1717763665204,0.75,3795.4,3794.1,2.63561]
[1717763665409,2.63442,3795.9,3794.1,2.63561]
[1717763665859,2.63397,3796.6,3793.2,0.008]
[1717763666128,2.63397,3796.6,3794.7,2.63521]
[1717763666343,0.263397,3796.5,3794.7,2.63521]
[1717763666706,2.7591145,3797.4,3794.5,2.32]
[1717763666906,2.7591145,3797.4,3794.8,0.31145704]
[1717763667107,0.75,3796.9,3794.8,0.31145704]
[1717763667307,0.75,3796.9,3795.9,2.6344]
[1717763667546,0.1257145,3797.4,3795.9,2.6344]
[1717763668455,0.1257145,3797.4,3794.6,0.32077974]
[1717763668651,2.7591045,3797.4,3795.3,2.63479]
[1717763668859,0.75,3797.0,3795.3,2.63479]
[1717763669424,0.75,3797.0,3794.4,0.33864754]
[1717763669636,0.75,3797.0,3794.4,0.2606]
[1717763670062,2.63354,3797.2,3794.4,0.2606]
[1717763670423,0.1257145,3797.4,3794.4,0.2606]
[1717763670642,0.1257145,3797.4,3794.4,0.51496]
[1717763670855,0.1257145,3797.4,3794.6,0.2606]
[1717763671058,0.8757145,3797.4,3794.6,3.2606]
[1717763671225,0.1257145,3797.4,3794.7,0.33864754]
[1717763671434,0.1257145,3797.4,3794.6,0.2606]
[1717763671615,0.1257145,3797.4,3795.9,2.63435]
[1717763671815,0.75,3797.3,3795.9,2.63435]
[1717763672058,0.1257145,3797.4,3795.9,2.63435]
[1717763672260,0.1257145,3797.4,3794.6,0.59924754]
[1717763672582,0.1257145,3797.4,3796.6,2.63392]
[1717763675542,0.1257145,3797.4,3796.7,0.05267571]
[1717763675847,0.1257145,3797.4,3796.9,2.63372]
[1717763676047,1.053776,3799.0,3796.2,2.3811]
[1717763676363,1.053776,3799.0,3798.1,2.63284]
[1717763676662,0.14662612,3798.9,3798.1,2.63284]
[1717763676849,0.41248518,3799.1,3798.1,2.63284]
[1717763677188,0.75,3801.4,3796.3,0.55]
[1717763677189,2.4371,3800.7,3799.1,2.63216]
[1717763677479,0.41230907,3799.2,3799.1,2.63216]
[1717763677635,2.4371,3800.7,3799.1,2.63216]
[1717763677837,0.41227026,3799.2,3799.1,2.63216]
[1717763678151,0.506808,3800.6,3798.5,2.6326]
[1717763678350,0.506808,3800.6,3796.9,0.008]
[1717763678537,0.506808,3800.6,3796.0,0.75]
[1717763678538,2.63223,3799.1,3797.9,2.633]
[1717763678738,2.63223,3799.1,3797.3,2.63342]
[1717763678943,0.263223,3799.0,3798.0,2.63289]
[1717763679137,6.43467863,3800.7,3797.4,2.63335]
[1717763679138,0.41238724,3799.2,3797.4,2.63335]
[1717763679357,0.41238724,3799.2,3796.8,2.63377]
[1717763679358,4.96321,3798.7,3796.8,2.63377]
[1717763679559,3.37909634,3798.6,3796.8,2.63377]
[1717763679763,2.63265,3798.5,3796.8,2.63377]
[1717763679968,0.37909634,3798.6,3797.3,2.63339]
[1717763680185,0.41238724,3799.2,3797.9,2.63302]
[1717763680513,0.41238724,3799.2,3796.3,2.63409]
[1717763680514,0.41238724,3799.2,3798.5,2.63258]
[1717763682198,2.63224,3799.1,3797.2,2.63345]
[1717763682359,0.41238724,3799.2,3797.2,2.63345]
[1717763682360,2.63242,3798.8,3797.2,2.63345]
[1717763682685,5.72712,3798.8,3797.2,2.63345]
[1717763683004,0.75,3798.8,3796.0,2.4659]
[1717763683300,2.63255,3798.6,3797.4,2.63336]
[1717763683462,0.338255,3798.5,3796.8,2.63375]
[1717763683906,0.338255,3798.5,3797.3,2.63341]
[1717763684261,0.75,3798.5,3797.8,2.63308]
[1717763684467,0.75,3798.5,3798.3,2.63273]
[1717763684979,0.41238724,3799.2,3798.8,2.63237]
[1717763686088,0.36238724,3799.2,3798.8,2.63237]
[1717763686260,0.36238724,3799.2,3797.4,2.63333]
[1717763686460,2.99456724,3799.2,3797.4,2.63333]
[1717763686666,2.63234,3798.9,3797.4,2.63333]
[1717763687104,2.6327,3798.4,3796.8,2.63377]
[1717763687462,0.75,3798.8,3797.3,2.63341]
[1717763687665,0.75,3798.8,3797.7,2.6331]
[1717763688027,0.75,3798.8,3796.2,1.0]
[1717763688028,0.36238724,3799.2,3798.7,2.63247]
[1717763688771,2.63173,3799.8,3798.1,2.63285]
[1717763689006,2.63188,3799.6,3798.1,2.63285]
[1717763689247,2.63188,3799.6,3797.1,0.008]
[1717763689248,2.63229,3799.0,3797.5,2.63326]
[1717763689503,2.63242,3798.8,3797.5,2.63326]
[1717763689663,2.63242,3798.8,3796.9,2.63367]
[1717763691317,0.75,3799.2,3797.9,2.63302]
[1717763691473,2.3137,3799.9,3796.9,0.008]
[1717763691670,2.3137,3799.9,3798.0,2.63293]
[1717763691671,2.63192,3799.5,3798.0,2.63293]
[1717763692014,0.263192,3799.4,3798.5,2.63255]
[1717763692323,3.0637,3799.9,3798.5,2.63255]
[1717763692324,2.3137,3799.9,3798.5,2.63255]
[1717763692923,0.75,3799.8,3798.5,2.63255]
[1717763693718,0.75,3799.8,3797.9,2.633]
[1717763694869,2.63185,3799.6,3797.9,2.633]
[1717763695106,2.63207,3799.3,3797.9,2.633]
[1717763695700,2.6324,3798.9,3797.4,2.63337]
[1717763696017,2.63308,3797.9,3796.6,0.008]
[1717763696203,5.2124,3799.0,3796.4,2.63406]
[1717763696204,2.6329,3798.1,3796.4,2.63406]
[1717763696518,3.3829,3798.1,3796.4,2.63406]
[1717763696814,3.3829,3798.1,3796.2,1.0]
[1717763696815,2.63324,3797.6,3796.2,1.0]
[1717763697373,3.33829,3798.0,3796.2,1.0]
[1717763697374,2.63367,3797.0,3796.2,1.0]
[1717763698068,0.56950847,3797.4,3796.2,0.95]
[1717763698069,2.63385,3796.8,3796.2,0.95]
[1717763698278,2.771,3796.8,3794.5,0.008]
[1717763698496,2.63476,3795.5,3793.7,2.64392]
[1717763698706,2.63476,3795.5,3793.7,2.63592]
[1717763699338,2.63476,3795.5,3793.2,1.062189]
[1717763699542,2.63524,3794.8,3793.2,1.054189]
[1717763699740,0.263524,3794.7,3793.2,1.054189]
[1717763701465,2.63542,3794.5,3792.7,0.008]
[1717763701666,2.63571,3794.1,3792.3,0.008]
[1717763701811,2.63571,3794.1,3791.9,2.63718]
[1717763702127,3.263542,3794.4,3792.2,0.008]
[1717763702128,2.6362,3793.4,3792.2,0.008]
[1717763702337,5.4304,3794.0,3791.8,2.63726]
[1717763702338,2.4304,3794.0,3791.8,2.63726]
[1717763702532,0.75,3793.3,3792.1,2.64504]
[1717763702840,2.63453,3795.8,3793.2,2.63626]
[1717763703048,2.2787,3796.2,3793.9,2.63577]
[1717763703366,2.63435,3796.0,3794.2,2.14208522]
[1717763703571,3.38435,3796.0,3794.2,2.14208522]
[1717763704348,3.38435,3796.0,3794.9,2.6351]
[1717763704349,0.75,3796.0,3794.9,2.6351]
[1717763704660,2.3147,3797.3,3793.8,2.4121]
[1717763704661,2.6333,3797.6,3795.6,2.63462]
[1717763704818,0.99212114,3797.5,3794.9,2.6351]
[1717763705021,0.99212114,3797.5,3793.8,3.466112]
[1717763705022,2.63385,3796.8,3794.1,2.63563]
[1717763705255,0.75,3796.6,3793.9,3.75]
[1717763705426,0.24212114,3797.5,3795.8,2.63446]
[1717763705762,0.53588445,3798.2,3794.7,0.75]
[1717763705966,0.75,3797.8,3796.9,2.63367]
[1717763706334,0.53588445,3799.4,3796.9,2.63367]
[1717763706539,0.0453419,3799.5,3795.8,2.63448]
[1717763706540,0.263228,3798.9,3795.8,2.63448]
[1717763706737,0.58122635,3799.5,3797.5,2.63326]
[1717763706935,0.75,3799.0,3795.9,3.41604969]
[1717763707143,2.2912,3799.9,3795.9,3.41604969]
[1717763707144,2.6772526,3799.6,3797.8,2.63305]
[1717763707346,0.28271944,3799.5,3797.8,2.63305]
[1717763707516,0.75,3799.0,3797.8,2.63305]
[1717763707732,0.75,3799.0,3797.1,2.63356]
[1717763708048,0.01516046,3799.4,3797.7,2.63312]
[1717763708366,0.75,3799.3,3797.7,2.63312]
[1717763708666,0.01516046,3799.4,3797.7,2.63312]
[1717763709035,0.26772526,3799.5,3798.3,2.63272]
[1717763709227,0.75,3799.4,3798.3,2.63272]
[1717763709746,2.63123,3800.6,3798.9,2.6323]
[1717763709954,0.39716837,3800.5,3798.9,2.6323]
[1717763710467,2.63131,3800.4,3798.9,2.6323]
[1717763710852,0.39716837,3800.5,3798.9,2.6323]
[1717763711051,2.63095,3800.9,3798.9,2.6323]
[1717763711221,2.63127,3800.5,3798.9,2.6323]
[1717763711420,0.75,3800.7,3797.5,2.63329]
[1717763711421,2.63169,3799.9,3797.5,2.63329]
[1717763711618,2.63207,3799.3,3797.5,2.63329]
[1717763711862,2.771,3800.3,3796.8,2.63374]
[1717763711863,2.63233,3799.0,3796.8,2.63374]
[1717763712097,2.63276,3798.3,3796.8,2.63374]
[1717763712238,0.53588445,3798.9,3796.8,2.63374]
[1717763712421,0.53588445,3798.8,3795.7,5.1006]
[1717763712621,0.3399407,3798.9,3795.8,2.8236646]
[1717763712898,0.263207,3799.2,3797.8,2.63306]
[1717763713088,0.53588445,3799.5,3798.4,2.63267]
[1717763713360,4.23068665,3800.4,3798.4,2.63267]
[1717763713361,2.6316,3800.0,3798.4,2.63267]
[1717763713521,2.63193,3799.5,3797.7,2.63314]
[1717763713721,0.53588445,3799.7,3796.5,3.0]
[1717763713969,0.53588445,3799.7,3796.3,0.75]
[1717763713970,0.75,3799.1,3798.3,2.63272]
[1717763714316,0.75,3799.1,3797.6,2.6332]
[1717763714425,2.76590537,3799.6,3797.6,2.6332]
[1717763714624,0.53588445,3799.4,3797.6,2.6332]
[1717763714823,1.16063591,3799.3,3798.2,2.63277]
[1717763715071,0.13404537,3799.6,3798.2,2.63277]
[1717763715241,0.53588445,3800.1,3798.2,2.63277]
[1717763715424,0.75,3799.9,3798.2,2.63277]
[1717763715628,2.63158,3800.0,3798.2,2.63277]
[1717763717169,0.53588445,3799.3,3798.0,2.6329]
[1717763717354,0.13404537,3799.2,3798.0,2.6329]
[1717763717528,0.39720337,3799.7,3798.6,2.63253]
[1717763717734,0.53588445,3800.0,3798.6,2.63253]
[1717763718055,2.63158,3800.0,3798.6,2.63253]
[1717763718369,0.53588445,3800.2,3798.6,2.63253]
[1717763718370,0.75,3800.1,3798.6,2.63253]
[1717763718565,2.63158,3800.0,3798.6,2.63253]
[1717763718868,2.63181,3799.7,3798.0,2.63294]
[1717763719053,2.63196,3799.5,3798.0,2.63294]
[1717763719243,0.75,3799.4,3798.0,2.63294]
[1717763719461,2.63211,3799.3,3798.0,2.63294]
[1717763719661,1.28588445,3799.4,3798.0,2.63294]
[1717763719861,2.94865944,3799.6,3796.7,3.0]
[1717763720063,0.34845439,3799.5,3796.7,0.2634]
[1717763720259,0.53588445,3799.7,3796.9,2.63365]
[1717763720549,2.63207,3799.3,3797.7,2.63314]
[1717763720941,2.63287,3798.2,3796.4,2.63405]
[1717763721158,2.633,3798.0,3796.4,2.63405]
[1717763721360,2.63334,3797.5,3795.8,2.63446]
[1717763721641,0.263287,3798.1,3794.0,0.75]
[1717763721642,2.63374,3796.9,3795.2,2.63486]
[1717763721875,3.16974445,3796.7,3795.2,2.63486]
[1717763722057,0.39743137,3796.6,3795.2,2.63486]
[1717763722444,2.63406,3796.5,3794.6,2.63527]
[1717763722700,2.63438,3796.0,3794.6,2.63527]
[1717763723259,2.63408,3796.4,3794.6,2.63527]
[1717763723463,2.63408,3796.4,3793.5,2.3508]
[1717763723464,2.63421,3796.2,3794.0,2.6357]
[1717763723775,2.63463,3795.6,3794.0,2.6357]
[1717763723975,2.63463,3795.6,3793.4,2.63611]
[1717763724552,0.75,3795.3,3792.5,3.461433]
[1717763724829,2.63439,3796.0,3794.0,2.6357]
[1717763725380,0.75,3795.9,3794.5,2.63535]
[1717763725724,0.17378851,3796.4,3795.0,2.63501]
[1717763725892,0.17378851,3796.4,3794.1,3.0]
[1717763726086,2.63414,3796.3,3793.0,2.779]
[1717763726419,0.75,3796.2,3793.1,3.65375816]
[1717763726578,0.53588445,3797.0,3795.3,2.63482]
[1717763726777,0.53588445,3797.5,3796.0,2.63434]
[1717763726980,0.53588445,3797.5,3794.4,5.2523]
[1717763726981,0.75,3797.1,3795.4,2.63474]
[1717763727230,2.63373,3796.9,3795.4,2.63474]
[1717763727450,0.53588445,3797.5,3794.4,5.2523]
[1717763727723,0.53588445,3797.7,3796.1,2.63423]
[1717763727939,3.78061737,3797.6,3795.5,2.63466]
[1717763728078,3.78061737,3797.6,3794.4,2.2523]
[1717763728079,2.63365,3797.1,3794.9,2.63507]
[1717763728451,2.63395,3796.6,3794.9,2.63507]
[1717763728730,2.63403,3796.5,3794.8,2.63515]
[1717763728940,2.63435,3796.0,3794.8,2.63515]
[1717763729228,2.63435,3796.0,3794.7,2.63523]
[1717763729749,2.63472,3795.5,3794.1,2.63562]
[1717763730033,0.75,3795.5,3794.6,2.63528]
[1717763730239,0.04534664,3796.0,3794.6,2.63528]
[1717763730562,0.75,3796.0,3794.0,2.6357]
[1717763730765,2.63445,3795.9,3794.0,2.6357]
[1717763731032,3.17033445,3795.9,3794.0,2.6357]
[1717763731235,2.63478,3795.4,3794.0,2.6357]
[1717763731530,0.53588445,3795.9,3794.5,2.63537]
[1717763731857,0.24777538,3795.8,3794.6,0.05889275]
[1717763731991,2.63465,3795.6,3794.6,0.05889275]
[1717763732331,0.75,3795.8,3793.8,0.008]
[1717763732332,2.63498,3795.1,3793.8,0.008]
[1717763732502,2.63498,3795.1,3794.7,0.06060056]
[1717763732904,2.63498,3795.1,3793.7,0.008]
[1717763733126,2.63498,3795.1,3793.7,2.63591]
[1717763733316,0.263498,3795.0,3793.8,0.06076052]
[1717763733891,2.63512,3794.9,3793.7,2.63591]
[1717763734657,2.63512,3794.9,3793.3,0.008]
[1717763734964,2.63512,3794.9,3793.1,2.64432]
[1717763735133,2.63551,3794.4,3793.4,0.06083164]
[1717763735434,2.898568,3795.0,3793.4,0.06083164]
[1717763735637,1.33696894,3795.7,3793.0,2.64441]
[1717763735638,2.63553,3794.3,3793.2,0.008]
[1717763735792,2.63553,3794.3,3793.5,0.06081386]
[1717763735994,2.63553,3794.3,3793.0,0.008]
[1717763736194,3.30688445,3795.6,3793.6,0.06079608]
[1717763736195,2.6358,3794.0,3793.6,0.06079608]
[1717763736394,2.6358,3794.0,3792.9,0.008]
[1717763736725,2.6358,3794.0,3793.7,0.0607783]
[1717763736975,2.6358,3794.0,3791.8,2.63721]
[1717763736976,2.63616,3793.4,3793.0,0.008]
[1717763737136,2.63616,3793.4,3792.1,0.008]
[1717763737485,2.63636,3793.2,3792.2,0.06104508]
[1717763737690,2.63636,3793.2,3792.2,0.06904508]
[1717763737981,2.63589,3793.8,3792.3,2.63691]
[1717763738146,0.263589,3793.7,3792.4,0.008]
[1717763738481,2.63641,3793.1,3792.5,0.06099171]
[1717763738984,2.63641,3793.1,3792.3,0.008]
[1717763739286,3.38641,3793.1,3791.8,0.008]
[1717763739453,3.38641,3793.1,3792.0,0.008]
[1717763739981,3.38641,3793.1,3792.1,0.06106288]
[1717763740187,2.63593,3793.8,3792.1,2.70609288]
[1717763740489,0.75,3793.7,3792.5,2.63672]
[1717763740701,2.63549,3794.4,3792.5,2.64472]
[1717763740889,2.63549,3794.4,3792.9,2.63647]
[1717763741044,2.4776,3795.2,3792.9,2.63647]
[1717763741045,2.63544,3794.5,3792.9,2.63647]
[1717763741339,0.75,3794.5,3793.1,2.63629]
[1717763741545,2.63458,3795.7,3793.9,2.63578]
[1717763741761,0.75,3794.8,3793.9,2.63578]
[1717763741976,0.75,3794.8,3794.2,2.63557]
[1717763742297,2.63458,3795.7,3794.2,2.63557]
[1717763742589,2.63458,3795.7,3793.2,0.50979928]
[1717763742590,3.38458,3795.7,3794.4,2.63541]
[1717763742888,0.263458,3795.6,3794.4,2.63541]
[1717763743209,2.63506,3795.0,3793.8,2.63582]
[1717763743344,2.63506,3795.0,3793.3,0.008]
[1717763743546,2.63506,3795.0,3793.2,2.63623]
[1717763743746,2.63506,3795.0,3793.7,2.63592]
[1717763743959,0.75,3795.3,3794.2,2.63559]
[1717763744204,2.63495,3795.2,3793.9,2.63577]
[1717763744349,0.75,3795.3,3794.3,0.0588367]
[1717763744575,2.63455,3795.8,3793.9,2.63577]
[1717763744780,0.263455,3795.7,3793.9,2.63577]
[1717763744984,0.75,3795.6,3794.4,2.63544]
[1717763745283,2.63443,3795.9,3794.4,2.63544]
[1717763745539,2.63443,3795.9,3794.5,0.05891319]
[1717763745823,2.63443,3795.9,3794.4,2.63544]
[1717763746112,0.75,3796.3,3794.4,2.63544]
[1717763746273,2.63425,3796.2,3794.4,2.63544]
[1717763746476,2.63436,3796.0,3794.6,2.63531]
[1717763746897,2.63436,3796.0,3794.7,0.05887765]
[1717763747890,2.6347,3795.5,3794.7,0.05887765]
[1717763748096,2.63504,3795.1,3793.8,0.008]
[1717763748299,3.38504,3795.1,3793.5,2.63603]
[1717763748517,0.338504,3795.0,3793.9,0.05700579]
[1717763748681,0.338504,3795.0,3793.5,2.63603]
[1717763748882,2.63513,3794.9,3793.5,2.63603]
[1717763750541,0.75,3794.8,3793.5,2.63603]
[1717763750696,2.63513,3794.9,3793.5,2.63603]
[1717763751030,0.2973634,3794.8,3793.5,2.63603]
[1717763751182,2.63513,3794.9,3793.5,2.63603]
[1717763751524,2.63513,3794.9,3793.2,2.64423]
[1717763751725,2.63549,3794.4,3793.1,0.008]
[1717763751900,2.6358,3794.0,3793.3,0.05351479]
[1717763752115,0.75,3795.5,3793.2,0.05353244]
[1717763752116,2.63591,3793.8,3793.2,0.05353244]
[1717763752293,2.63591,3793.8,3792.7,0.008]
[1717763752493,2.63591,3793.8,3792.4,0.008]
[1717763752693,2.63591,3793.8,3792.8,0.04999578]
[1717763752945,2.63591,3793.8,3792.6,0.008]
[1717763753160,2.63622,3793.4,3792.9,0.04829912]
[1717763753448,2.63622,3793.4,3792.5,0.008]
[1717763753739,2.63622,3793.4,3791.7,2.63733]
[1717763753740,2.63649,3793.0,3792.1,0.008]
[1717763753932,2.63649,3793.0,3792.0,0.008]
[1717763754155,2.63685,3792.5,3792.2,0.04842365]
[1717763754432,2.771,3793.7,3792.0,0.008]
[1717763754433,3.38692,3792.3,3792.0,0.008]
[1717763754640,3.38692,3792.3,3790.5,2.6381]
[1717763754834,3.38692,3792.3,3792.1,0.04808149]
[1717763755033,3.38692,3792.3,3791.9,0.008]
[1717763755253,3.38692,3792.3,3791.3,0.008]
[1717763755393,2.63706,3792.1,3791.3,0.008]
[1717763756130,2.63732,3791.8,3791.3,0.008]
[1717763756436,5.07772,3791.8,3790.6,0.008]
[1717763756641,2.6375,3791.5,3790.9,0.008]
[1717763756796,2.6375,3791.5,3790.8,0.008]
[1717763757717,3.3875,3791.5,3790.8,0.008]
[1717763758426,2.6375,3791.5,3790.8,0.008]
[1717763760081,3.3875,3791.5,3790.8,0.008]
[1717763760234,2.63708,3792.1,3790.8,0.008]
[1717763760438,2.63708,3792.1,3791.2,0.008]
[1717763760620,13.05808479,3793.7,3791.2,0.008]
[1717763760621,0.75,3792.3,3791.2,0.008]
[1717763760839,5.06813009,3793.6,3791.5,0.008]
[1717763761049,5.06813009,3793.6,3789.1,2.771]
[1717763761050,2.63696,3792.3,3791.9,0.008]
[1717763761378,2.63722,3791.9,3791.6,0.008]
[1717763761656,2.63722,3791.9,3791.1,0.008]
[1717763761863,2.63763,3791.3,3791.1,0.008]
[1717763762167,0.57024564,3792.8,3789.6,2.63877]
[1717763762168,2.63724,3791.9,3790.7,0.008]
[1717763762462,2.63724,3791.9,3789.7,3.0]
[1717763762463,2.6368,3792.5,3791.2,2.63767]
[1717763762618,0.75,3792.8,3791.7,2.63731]
[1717763762822,2.63639,3793.1,3791.7,2.63731]
[1717763763076,2.63599,3793.7,3792.0,2.64512]
[1717763763230,0.75,3793.6,3792.4,2.63679]
[1717763763570,2.63555,3794.3,3792.6,2.63666]
[1717763763790,2.63555,3794.3,3793.1,2.63634]
[1717763763922,2.63555,3794.3,3792.7,0.0427695]
[1717763763923,2.899105,3794.3,3792.7,0.0427695]
[1717763764123,2.63591,3793.8,3792.7,0.0507695]
[1717763764355,2.63626,3793.3,3792.7,0.0427695]
[1717763764540,2.63626,3793.3,3792.4,0.008]
[1717763764736,0.26873323,3794.3,3792.3,2.63692]
[1717763764737,2.63585,3793.9,3792.3,2.63692]
[1717763764941,0.75,3793.5,3792.5,0.05061528]
[1717763765137,2.63541,3794.5,3792.6,2.63668]
[1717763765339,3.38541,3794.5,3793.1,2.63634]
[1717763765538,0.75,3794.5,3793.1,2.63634]
[1717763765740,0.75,3794.5,3793.4,2.63614]